Cogmind - Beta 9.3 @@@ ROGUE MODE // 2019.12.31 @ 11:41:04 Player: Cipherpunk Result: Destroyed by S-10 Pest with Light Assault Rifle Performance ------------- Evolutions (0) 0 Regions Visited (2) 400 Robots Destroyed (21) 105 Value Destroyed (509) 509 Prototype IDs (2) 40 Alien Tech Used (0) 0 Bonus (0) 0 TOTAL SCORE: 1054 Bonus ------- None Cogmind --------- Core Integrity 0/250 Matter 274/300 Energy 110/125 System Corruption 0% Temperature Cool (20) Movement Walking (180) Ox2 Location -10/Mines Parts ------- > --- POWER (1) -------- Light Ion Engine > --- PROPULSION (2) --- Aluminum Leg Aluminum Leg > --- UTILITY (2) ------ Medium Storage Unit High-capacity Storage Unit > --- WEAPON (2) ------- Particle Cannon Grenade Launcher > --- INVENTORY (16) --- Light Ion Engine Light Nuclear Core Aluminum Leg Aluminum Leg Aluminum Leg High-capacity Storage Unit Transport Network Coupler Hacking Suite Particle Gun Spread Laser Beam Cannon Particle Cannon Particle Cannon Mining Laser Peak State ------------ > --- POWER ------------ Light Ion Engine > --- PROPULSION ------- Aluminum Leg Aluminum Leg > --- UTILITY ---------- High-capacity Storage Unit Weight Redist. System > --- WEAPON ----------- Beam Rifle Light Assault Rifle > --- INVENTORY -------- Light Ion Engine Aluminum Leg High-capacity Storage Unit High-capacity Storage Unit Transport Network Coupler Hacking Suite Spread Laser Grenade Launcher Datajack [Rating: 10] Favorites ----------- Power Light Ion Engine Engine Light Ion Engine Propulsion Aluminum Leg Leg Aluminum Leg Utility High-capacity Storage Unit Device Sensor Array Storage High-capacity Storage Unit Weapon Light Assault Rifle Energy Gun Beam Rifle Energy Cannon Particle Cannon Ballistic Gun Light Assault Rifle Launcher Grenade Launcher Build | -11 -10 -10 ------- Run | Scr Mat Min Slots Evolved . | . . . Power . | . . . Propulsion . | . . . Utility . | . . . Weapon . | . . . Parts Attached 19 | . 16 3 Power 1 | . 1 . Engine 1 | . 1 . Core . | . . . Reactor . | . . . Propulsion 5 | . 4 1 Treads . | . . . Leg 5 | . 4 1 Wheel . | . . . Hover . | . . . Flight . | . . . Utility 4 | . 4 . Device 2 | . 2 . Storage 2 | . 2 . Processor . | . . . Hackware . | . . . Protection . | . . . Artifact . | . . . Weapon 9 | . 7 2 Energy Gun 4 | . 4 . Energy Cannon 1 | . . 1 Ballistic Gun 3 | . 3 . Ballistic Cannon . | . . . Launcher 1 | . . 1 Special Weapon . | . . . Impact Weapon . | . . . Slashing Weapon . | . . . Piercing Weapon . | . . . Special Melee Weapon . | . . . Unidentified Prototypes . | . . . Parts Lost 8 | . 6 2 Power . | . . . Propulsion 2 | . 2 . Utility 1 | . 1 . Weapon 5 | . 3 2 Highest Loss Streak 3 | . 3 2 Average Slot Usage (%) 97 | . 94 100 Engine 14 | . 14 14 Leg 27 | . 27 28 Device 4 | . 8 . Storage 21 | . 14 28 Energy Gun 12 | . 11 13 Ballistic Gun 15 | . 16 14 Naked Turns . | . . . Heaviest Build 47 | 12 47 47 Greatest Support 26 | 20 26 20 Greatest Overweight (x) 2 | . 2 2 Average Overweight (x) 1 | . . 2 Largest Inventory Capacity 16 | 6 16 16 Average Capacity 12 | 6 8 16 Most Carried 16 | 6 16 16 Average Carried 11 | 6 7 15 Final Capacity 16 | 6 16 16 Final Carried 16 | 6 16 14 Class Distribution -------------------- 77% | Scavenger-Mutant 22% | Mutant Dominant Class ---------------- Scavenger-Mutant | -10/Materials Scavenger-Mutant | -10/Mines Resources | -11 -10 -10 ----------- Run | Scr Mat Min Matter Collected 432 | 200 199 33 Remotely . | . . . Salvage Created 744 | . 601 143 Parts 41 | . 35 6 Haulers Intercepted 1 | . 1 . Recyclers Shooed 1 | . 1 . Parts Field Recycled . | . . . Retrieved Matter . | . . . Parts Self-Destructed . | . . . Prevented . | . . . Kills | -11 -10 -10 ------- Run | Scr Mat Min Combat Hostiles Destroyed 15 | . 12 3 Guns 15 | . 12 3 Classes Destroyed 8 | . 8 . Worker 1 | . 1 . Builder 1 | . 1 . Hauler 1 | . 1 . Recycler 1 | . 1 . Operator 1 | . 1 . Watcher 1 | . 1 . Swarmer 4 | . 4 . Grunt 11 | . 8 3 Best Kill Streak 6 | . 6 2 Combat Bots Only 3 | . 3 2 Max Kills in Single Turn 1 | . 1 1 Gunslinging . | . . . Exploded . | . . . Melee . | . . . Uniques/NPCs Destroyed . | . . . Combat | -11 -10 -10 -------- Run | Scr Mat Min Damage Taken 1103 | 2 804 297 Core 258 | . 166 92 Absorbed by Shields . | . . . Core Remaining (%) 100 | 100 . . Volleys Fired 80 | . 65 15 Largest 2 | . 2 2 Hottest 130 | . 130 98 Shots Fired 157 | . 127 30 Gun 154 | . 127 27 Cannon 2 | . . 2 Launcher 1 | . . 1 Special . | . . . Kinetic 76 | . 62 14 Thermal 80 | . 65 15 Explosive 1 | . . 1 Electromagnetic . | . . . Robot Hit Streak 11 | . 9 11 Robot Miss Streak 7 | . 7 1 Penetration Max . | . . . Secondary Targets 3 | . 3 . Max Gunslinging Chain 1 | . 1 . Shots Hit Robots 113 | . 91 22 Core Hits 50 | . 39 11 Critical Hits 1 | . 1 . Critical Kills . | . . . Critical Parts Destroyed 1 | . 1 . Melee Attacks . | . . . Impact . | . . . Slashing . | . . . Piercing . | . . . Sneak Attacks . | . . . Combat Hostiles . | . . . Follow-up Attacks . | . . . Damage Inflicted 1114 | 4 840 270 Guns 1069 | . 840 229 Cannons 41 | . . 41 Explosions . | . . . Melee . | . . . Ramming 4 | 4 . . Kinetic 337 | . 283 54 Thermal 773 | . 557 216 Explosive . | . . . Electromagnetic . | . . . Impact . | . . . Slashing . | . . . Piercing . | . . . Highest Corruption . | . . . Average Corruption . | . . . Corruption Purged . | . . . Overload Shots . | . . . Overflow Damage . | . . . Projectiles . | . . . Explosions . | . . . Melee . | . . . Knockbacks . | . . . Impact . | . . . Kinetic . | . . . Secondary . | . . . Self-Inflicted Damage 2 | 2 . . Shots . | . . . Rammed 1 | 1 . . Targets Rammed 1 | 1 . . Kicked . | . . . Crushed . | . . . Highest Temperature 369 | . 369 226 Average Temperature 126 | . 132 99 Received Heat Transfer 390 | . 270 120 Effects 2 | . 2 . Energy Bleed 2 | . 2 . Siege Activations . | . . . Robots Corrupted . | . . . Combat Hostiles . | . . . Parts Fried . | . . . Impact Corruptions . | . . . Robots Melted . | . . . Combat Hostiles . | . . . Parts Melted 1 | . . 1 Heat Transferred 1783 | . 1265 518 Parts Sabotaged . | . . . Parts Stolen . | . . . Parts Stripped . | . . . Power Chain Reactions . | . . . Missiles Intercepted . | . . . Alert | -11 -10 -10 ------- Run | Scr Mat Min Peak Influence 187 | . 187 69 Average Influence 50 | . 71 29 Maximum Alert Level . | . . . Low Security (%) 100 | 100 100 100 Level 1 . | . . . Level 2 . | . . . Level 3 . | . . . Level 4 . | . . . Level 5 . | . . . High Security . | . . . Max Security . | . . . Squads Dispatched 2 | . 2 . Investigation 1 | . 1 . Extermination . | . . . Reinforcement 1 | . 1 . Assault . | . . . Garrison . | . . . Intercept . | . . . Construction Impeded . | . . . Haulers Reinforced . | . . . Stealth | -11 -10 -10 --------- Run | Scr Mat Min Distress Signals 2 | . 2 . Communications Jammed . | . . . Distress Signals . | . . . Times Spotted 33 | . 26 7 Peak Tracking Total 5 | . 5 3 Tactical Retreats 2 | . 2 . Traps | -11 -10 -10 ------- Run | Scr Mat Min Traps Triggered . | . . . Indirectly . | . . . Trap Hack Attempts . | . . . Triggered . | . . . Disarmed . | . . . Reprogrammed . | . . . Reused . | . . . Traps Extracted . | . . . Installed . | . . . Triggered . | . . . Machines | -11 -10 -10 ---------- Run | Scr Mat Min Machines Disabled 1 | . 1 . Max in Single Turn 1 | . 1 . Machines Sabotaged . | . . . Garrisons Compromised . | . . . Overloaded Fab Kills . | . . . Fab Network Shutdowns . | . . . Hacking | -11 -10 -10 --------- Run | Scr Mat Min Machines Accessed 6 | . 5 1 Terminals 6 | . 5 1 Fabricators . | . . . Repair Stations . | . . . Recycling Units . | . . . Scanalyzers . | . . . Garrison Access . | . . . Total Hacks 16 | . 14 2 Successful 5 | . 4 1 Failed 11 | . 10 1 Catastrophic 4 | . 4 . Database Lockouts . | . . . Manual 10 | . 10 . Terminals 16 | . 14 2 Fabricators . | . . . Repair Stations . | . . . Recycling Units . | . . . Scanalyzers . | . . . Garrison Access . | . . . Terminal Hacks 4 | . 3 1 Prototype ID Bank 1 | . 1 . Branch Access Points 1 | . 1 . Locate Traps 1 | . 1 . Zone Layout 1 | . . 1 Fabricator Hacks . | . . . Repair Station Hacks . | . . . Recycling Unit Hacks . | . . . Scanalyzer . | . . . Garrison Access Hacks . | . . . Unauthorized Hacks 2 | . 2 . Terminals 1 | . 1 . Botnet 1 | . 1 . Fabricators . | . . . Repair Stations . | . . . Recycling Units . | . . . Scanalyzers . | . . . Garrison Access . | . . . Data Cores Recovered . | . . . Used . | . . . Hacking Detections 5 | . 4 1 Full Trace Events 1 | . 1 . Feedback Events . | . . . Feedback Blocked . | . . . Robot Schematics Acquired . | . . . Robots Built . | . . . Matter . | . . . Time . | . . . Total Robot Build Rating . | . . . Part Schematics Acquired . | . . . Parts Built . | . . . Matter . | . . . Time . | . . . Total Part Build Rating . | . . . Parts Repaired . | . . . Time . | . . . Parts Recycled . | . . . Recycled Matter . | . . . Retrieved Matter . | . . . Retrieved Components . | . . . Parts Scanalyzed . | . . . Part Schematics Acquired . | . . . Parts Damaged . | . . . Bothacking | -11 -10 -10 ------------ Run | Scr Mat Min Used RIF Installer . | . . . Robots Hacked . | . . . Non-combat . | . . . Combat . | . . . Robot Hacks Applied . | . . . Relay Couplers Released . | . . . Robots Rewired . | . . . Allies Hacked . | . . . Hacks Repelled . | . . . Allies | -11 -10 -10 -------- Run | Scr Mat Min Total Allies . | . . . Largest Group . | . . . Highest-Rated Group . | . . . Highest-Rated Ally . | . . . Total Orders . | . . . Ally Attacks . | . . . Total Damage . | . . . Kills . | . . . Allies Corrupted . | . . . Allies Melted . | . . . Intel | -11 -10 -10 ------- Run | Scr Mat Min Robot Analysis Total . | . . . Derelict Logs Recovered 1 | . . 1 Drone Launches . | . . . Drone Recoveries . | . . . Exploration | -11 -10 -10 ------------- Run | Scr Mat Min Turns Passed 2014 | 15 999 1000 Spaces Moved 1036 | 12 536 488 Core . | . . . Treads . | . . . Legs 1036 | 12 536 488 Wheels . | . . . Hover . | . . . Flight . | . . . Fastest Speed 120 | 120 120 180 Average Speed 154 | 120 131 180 Slowest Speed 180 | 120 180 180 Overloaded Moves . | . . . Propulsion Burnouts . | . . . Robots Hopped . | . . . Cave-ins Triggered . | . . . Exploration Rate (%) 59 | 3 77 97 Regions Visited 2 Branch Regions 1 Pre-discovered Areas 1 | . . 1 Known Exits Taken 1 | . 1 . Unknown Exits Taken 1 | 1 . . Scrap Searched 1 | . . 1 Spaces Dug . | . . . Terrain Destroyed 7 | . . 7 Melee . | . . . Projectile . | . . . AOE 7 | . . 7 Actions | -11 -10 -10 --------- Run | Scr Mat Min Total 1324 | 12 725 587 Wait 136 | . 66 70 Move 1035 | 12 535 488 Hop . | . . . Pick Up 30 | . 25 5 Fast Attach 5 | . 5 . Attach 7 | . 5 2 Detach 1 | . 1 . Swap 7 | . 6 1 Drop 23 | . 17 6 Fire 80 | . 65 15 Melee . | . . . Ram . | . . . Kick . | . . . Crush . | . . . Escape Stasis . | . . . Rewire . | . . . Trap . | . . . Miscellaneous . | . . . Route ------- -11/Scrapyard -10/Materials (discovered 3 exits: [*Mat x2] / *Min) -10/Mines (discovered 2 exits: [*Mat x2]) History --------- Turn | Location | Event 1 | -11/Scrapyard | Discovered new exit (range 3) 16 | -11/Scrapyard | Entered Materials 318 | -10/Materials | Build established: Mutant 385 | -10/Materials | Discovered new exit (range 15) 659 | -10/Materials | Core integrity fell below 50% 845 | -10/Materials | Discovered new exit (range 6) 852 | -10/Materials | Lost 3 parts (1n1u1w) 883 | -10/Materials | Build established: Scavenger-Mutant 918 | -10/Materials | Identified exit to Mines 1015 | -10/Materials | Entered Mines 1040 | -10/Mines | Core integrity fell below 20% 1159 | -10/Mines | Learned location of Zion (-6) 1770 | -10/Mines | Discovered new exit (range 9) 1919 | -10/Mines | Discovered new exit (range 15) 2015 | -10/Mines | Destroyed by S-10 Pest with Light Assault Rifle Last Messages --------------- 01159_ Acquired derelict log, extracted data. World map updated: -6/Zion. 01254_ K-01 Serf collects debris. 01373_ Connecting with Terminal... >>Layout(Zone) Retrieving Zone 1H layout... Downloaded map data. 01507_ Searching scrap... 01507_ Found 35 Matter. 01507_ Found Transport Network Coupler. 01507_ Found Ion Engine. 01537_ K-01 Serf collects debris. 01770_ EXIT=FOUND 01945_ G-34 Mercenary destroyed. 01956_ Aluminum Leg melted. 01956_ G-47 Trooper destroyed. 01961_ Dropped Aluminum Leg. 01962_ Acquired 17 matter. 02009_ Beam Rifle destroyed. 02013_ Lgt. Assault Rifle destroyed. Map ----- +----------------------------------------------------+ | | | | | | | | | | | | | | | | | | | | | | | | | | | | | | | | | ??????????????????????????????????? | | ??????????????????????????????????? | | ???????????####???????????????????? | | ????###???# ##??????????????????? | | ???## ### #??????????????????? | | ???# #??????????????????? | | ???# #??????????????????? | | ????# #??????????????????? | | ???## #???????????????????? | | ?# @ #????????????????????? | | ?# sss####????????????????????? | | ?# #??#######??????????????? | | ?# #### ##?????????????? | | ?# ##????????????? | | ?#### ##???????????? | | ????# #???????????? | | ????# ### ##??????????? | | ????## ##?## < #??????????? | | ?????### ##???## ##?????????? | | ???????#######?????## ####??????? | | ????????????????????## ####???? | | ?????????????????????## ##??? | | ??????????????????????#### #### | | ?????????????????????????## % # | | ??????????????????##########%* | | ??????????? =[ | | ??????????????????############ | | ?????????????????????????????## | | ?????????????##########???????# # | | ?????????????# #???????# ## | | ?????????????# """ ######### #? | | ?????????????# """ #? | | ?????????????# """ ######### #? | | ?????????????# < #???????# #? | +----------------------------------------------------+ Best States ------------- Heat Dissipation 25 Energy Generation 10 Energy Capacity 250 Matter Stores 300 Matter Capacity 300 Sight Range 16 Robot Scan Range 10 Terrain Scan Density 10 Additional Mass Support 6 Evasion (%) 40 Item Schematics ----------------- None Robot Schematics ------------------ None Fabricated ------------ Nothing Alien Tech Used ----------------- None Achievements -------------- None Challenges ------------ None Game ------ Seed PoweredPoweredBoosters Manual? 0 Play Time 00:17:42 Cumulative 75.3 hours Start 2019.12.31 @ 11:26:38 End 2019.12.31 @ 11:41:04 Sessions 1 Manual Loads 0 Difficulty Rogue Special Mode None Game No. 75 Rogue 75 Adventurer 0 Explorer 0 Win Type - Total 0 Types 0/0/0/0/0/0/0 Lore% 45 Gallery% 49 Achievement% 37 Wizard Run 0 Options --------- ASCII 0 Keyboard 1 Movement Numpad Keybinds 0 Fullscreen 2 Font 18/Terminus Map View 76x50 Tactical HUD 1 Map Filters NONE Filters NONE Steam 1 RUN: f9ec0084-95e0-4d14-a2d8-e5d9fb63a359